[Event "Titled Tuesday Blitz January 18 2022"]
[White "Oparin, Grigoriy"]
[Black "Samunenkov, Ihor"]
[WhiteFideId "24125890"]
[BlackFideId "14187086"]
[WhiteElo "2685"]
[BlackElo "2406"]
[Result "1-0"]
[Round "04"]
[TimeControl "180+1"]
[Date "2022.01.18"]
[WhiteClock "0:00:20"]
[BlackClock "0:00:04"]

1. b3 {[%clk 0:03:00]}  c5 {[%clk 0:02:59]} 2. Bb2 {[%clk 0:03:01]}  Nc6 {[%clk 0:03:00]} 3. e3 {[%clk 0:03:01]}  e5 {[%clk 0:02:59]} 4. Bb5 {[%clk 0:03:01]}  Nge7 {[%clk 0:02:59]} 5. Nf3 {[%clk 0:02:58]}  e4 {[%clk 0:02:56]} 6. Ng5 {[%clk 0:02:51]}  d5 {[%clk 0:02:47]} 7. Qh5 {[%clk 0:02:50]}  Ng6 {[%clk 0:02:38]} 8. c4 {[%clk 0:02:44]}  h6 {[%clk 0:02:10]} 9. Nxf7 {[%clk 0:02:39]}  Kxf7 {[%clk 0:02:10]} 10. cxd5 {[%clk 0:02:39]}  Nb4 {[%clk 0:01:57]} 11. O-O {[%clk 0:02:37]}  Qg5 {[%clk 0:01:39]} 12. Qxg5 {[%clk 0:02:37]}  hxg5 {[%clk 0:01:39]} 13. Nc3 {[%clk 0:02:38]}  Bd6 {[%clk 0:01:35]} 14. h3 {[%clk 0:02:33]}  Be5 {[%clk 0:01:20]} 15. f3 {[%clk 0:02:08]}  exf3 {[%clk 0:00:56]} 16. Rxf3+ {[%clk 0:02:09]}  Ke7 {[%clk 0:00:56]} 17. a3 {[%clk 0:02:06]}  Na6 {[%clk 0:00:49]} 18. Raf1 {[%clk 0:02:02]}  Rf8 {[%clk 0:00:49]} 19. Rxf8 {[%clk 0:01:54]}  Nxf8 {[%clk 0:00:50]} 20. d6+ {[%clk 0:01:55]}  Bxd6 {[%clk 0:00:47]} 21. Nd5+ {[%clk 0:01:49]}  Kd8 {[%clk 0:00:40]} 22. Bxg7 {[%clk 0:01:41]}  Bd7 {[%clk 0:00:18]} 23. Bxa6 {[%clk 0:01:31]}  Ne6 {[%clk 0:00:18]} 24. Bf6+ {[%clk 0:01:30]}  Ke8 {[%clk 0:00:16]} 25. Bd3 {[%clk 0:01:26]}  Bc6 {[%clk 0:00:17]} 26. Rf5 {[%clk 0:01:14]}  Kd7 {[%clk 0:00:15]} 27. Bc3 {[%clk 0:01:13]}  Rf8 {[%clk 0:00:10]} 28. Nf6+ {[%clk 0:01:05]}  Ke7 {[%clk 0:00:10]} 29. Nd5+ {[%clk 0:01:04]}  Kd7 {[%clk 0:00:09]} 30. Rxf8 {[%clk 0:01:04]}  Bxf8 {[%clk 0:00:09]} 31. Bf5 {[%clk 0:01:05]}  Bxd5 {[%clk 0:00:09]} 32. b4 {[%clk 0:01:04]}  cxb4 {[%clk 0:00:09]} 33. axb4 {[%clk 0:01:05]}  Kd6 {[%clk 0:00:08]} 34. e4 {[%clk 0:01:01]}  Bc4 {[%clk 0:00:07]} 35. d4 {[%clk 0:01:01]}  Bg7 {[%clk 0:00:05]} 36. Bxe6 {[%clk 0:01:00]}  Bxe6 {[%clk 0:00:04]} 37. Kf2 {[%clk 0:00:59]}  b5 {[%clk 0:00:03]} 38. Ke3 {[%clk 0:00:58]}  g4 {[%clk 0:00:04]} 39. hxg4 {[%clk 0:00:56]}  Bxg4 {[%clk 0:00:05]} 40. Be1 {[%clk 0:00:55]}  Bh6+ {[%clk 0:00:04]} 41. Kd3 {[%clk 0:00:55]}  Be6 {[%clk 0:00:04]} 42. Bg3+ {[%clk 0:00:55]}  Ke7 {[%clk 0:00:04]} 43. d5 {[%clk 0:00:55]}  Bg4 {[%clk 0:00:05]} 44. e5 {[%clk 0:00:52]}  Kd7 {[%clk 0:00:03]} 45. Bf2 {[%clk 0:00:50]}  Bf8 {[%clk 0:00:02]} 46. Bc5 {[%clk 0:00:49]}  Be7 {[%clk 0:00:02]} 47. Kd4 {[%clk 0:00:44]}  Bf5 {[%clk 0:00:02]} 48. e6+ {[%clk 0:00:38]}  Ke8 {[%clk 0:00:01]} 49. Bxe7 {[%clk 0:00:30]}  Kxe7 {[%clk 0:00:02]} 50. Ke5 {[%clk 0:00:30]}  Bg4 {[%clk 0:00:01]} 51. d6+ {[%clk 0:00:31]}  Ke8 {[%clk 0:00:02]} 52. Kd5 {[%clk 0:00:26]}  Kd8 {[%clk 0:00:02]} 53. Ke5 {[%clk 0:00:19]}  Ke8 {[%clk 0:00:02]} 54. Kf6 {[%clk 0:00:20]}  a6 {[%clk 0:00:02]} 55. d7+ {[%clk 0:00:18]}  Kd8 {[%clk 0:00:02]} 56. Kf7 {[%clk 0:00:18]}  Bh5+ {[%clk 0:00:02]} 57. Kf8 {[%clk 0:00:18]}  Bg6 {[%clk 0:00:03]} 58. g4 {[%clk 0:00:17]}  a5 {[%clk 0:00:02]} 59. bxa5 {[%clk 0:00:18]}  b4 {[%clk 0:00:02]} 60. a6 {[%clk 0:00:19]}  b3 {[%clk 0:00:02]} 61. a7 {[%clk 0:00:19]}  b2 {[%clk 0:00:03]} 62. a8=Q+ {[%clk 0:00:19]}  Kc7 {[%clk 0:00:04]} 63. Qc8+ {[%clk 0:00:20]} 1-0


[Site "https://www.chess.com"]

[Event "Titled Tuesday Blitz January 18 2022"]
[White "Ozer, Omer Faruk"]
[Black "Vargas, Gabriela"]
[WhiteFideId "6354564"]
[BlackFideId "3700860"]
[WhiteElo "2050"]
[BlackElo "2110"]
[Result "1-0"]
[Round "04"]
[TimeControl "180+1"]
[Date "2022.01.18"]
[WhiteClock "0:01:45"]
[BlackClock "0:00:50"]

1. e4 {[%clk 0:03:00]}  Nf6 {[%clk 0:02:59]} 2. e5 {[%clk 0:03:00]}  Nd5 {[%clk 0:02:59]} 3. d4 {[%clk 0:03:01]}  d6 {[%clk 0:02:59]} 4. c4 {[%clk 0:03:01]}  Nb6 {[%clk 0:02:59]} 5. exd6 {[%clk 0:03:01]}  cxd6 {[%clk 0:02:59]} 6. Nc3 {[%clk 0:03:01]}  g6 {[%clk 0:03:00]} 7. a4 {[%clk 0:03:02]}  Bg7 {[%clk 0:02:57]} 8. a5 {[%clk 0:03:02]}  N6d7 {[%clk 0:02:57]} 9. Ra3 {[%clk 0:03:02]}  O-O {[%clk 0:02:56]} 10. Nf3 {[%clk 0:03:03]}  Nc6 {[%clk 0:02:54]} 11. d5 {[%clk 0:03:03]}  Nce5 {[%clk 0:02:54]} 12. Nxe5 {[%clk 0:03:03]}  Nxe5 {[%clk 0:02:55]} 13. Be2 {[%clk 0:03:04]}  e6 {[%clk 0:02:49]} 14. O-O {[%clk 0:03:02]}  exd5 {[%clk 0:02:49]} 15. Nxd5 {[%clk 0:03:02]}  Be6 {[%clk 0:02:44]} 16. Be3 {[%clk 0:02:59]}  Nc6 {[%clk 0:02:41]} 17. Qd2 {[%clk 0:02:53]}  Re8 {[%clk 0:02:21]} 18. b3 {[%clk 0:02:41]}  Bxd5 {[%clk 0:01:52]} 19. Qxd5 {[%clk 0:02:37]}  Ne7 {[%clk 0:01:48]} 20. Qxb7 {[%clk 0:02:31]}  d5 {[%clk 0:01:44]} 21. Bxa7 {[%clk 0:02:19]}  d4 {[%clk 0:01:40]} 22. Bf3 {[%clk 0:02:13]}  Qd6 {[%clk 0:01:36]} 23. c5 {[%clk 0:02:11]}  Qf4 {[%clk 0:01:35]} 24. Ra4 {[%clk 0:01:54]}  Rxa7 {[%clk 0:01:34]} 25. Qxa7 {[%clk 0:01:54]}  Be5 {[%clk 0:01:34]} 26. g3 {[%clk 0:01:49]}  Qxf3 {[%clk 0:01:34]} 27. Qd7 {[%clk 0:01:49]}  Kf8 {[%clk 0:01:32]} 28. a6 {[%clk 0:01:47]}  Nf5 {[%clk 0:01:31]} 29. a7 {[%clk 0:01:46]}  d3 {[%clk 0:00:54]} 30. Qxe8+ {[%clk 0:01:44]}  Kxe8 {[%clk 0:00:52]} 31. a8=Q+ {[%clk 0:01:44]}  Qxa8 {[%clk 0:00:51]} 32. Rxa8+ {[%clk 0:01:45]}  Kd7 {[%clk 0:00:50]} 33. Rd1 {[%clk 0:01:45]} 1-0


[Site "https://www.chess.com"]

[Event "Titled Tuesday Blitz January 18 2022"]
[White "Padmini, Rout"]
[Black "Willow, Jonah B"]
[WhiteFideId "5029295"]
[BlackFideId "438804"]
[WhiteElo "2181"]
[BlackElo "2261"]
[Result "1-0"]
[Round "04"]
[TimeControl "180+1"]
[Date "2022.01.18"]
[WhiteClock "0:00:18"]
[BlackClock "0:00:50"]

1. d4 {[%clk 0:03:00]}  Nf6 {[%clk 0:02:58]} 2. c4 {[%clk 0:03:00]}  e6 {[%clk 0:02:58]} 3. Nf3 {[%clk 0:02:53]}  c5 {[%clk 0:02:58]} 4. e3 {[%clk 0:02:47]}  cxd4 {[%clk 0:02:57]} 5. exd4 {[%clk 0:02:48]}  d5 {[%clk 0:02:58]} 6. Nc3 {[%clk 0:02:49]}  Be7 {[%clk 0:02:57]} 7. cxd5 {[%clk 0:02:44]}  exd5 {[%clk 0:02:58]} 8. Bd3 {[%clk 0:02:44]}  O-O {[%clk 0:02:58]} 9. O-O {[%clk 0:02:45]}  Nc6 {[%clk 0:02:59]} 10. h3 {[%clk 0:02:45]}  h6 {[%clk 0:02:59]} 11. a3 {[%clk 0:02:43]}  Re8 {[%clk 0:02:58]} 12. Bf4 {[%clk 0:02:28]}  Bd6 {[%clk 0:02:58]} 13. Bxd6 {[%clk 0:02:19]}  Qxd6 {[%clk 0:02:59]} 14. Re1 {[%clk 0:02:20]}  Be6 {[%clk 0:02:56]} 15. Qd2 {[%clk 0:02:19]}  a6 {[%clk 0:02:52]} 16. Re2 {[%clk 0:02:17]}  Rac8 {[%clk 0:02:50]} 17. Rae1 {[%clk 0:02:17]}  Red8 {[%clk 0:02:36]} 18. Bb1 {[%clk 0:02:10]}  Na5 {[%clk 0:02:32]} 19. Ne5 {[%clk 0:02:10]}  Nc4 {[%clk 0:02:28]} 20. Qd3 {[%clk 0:01:57]}  Qb6 {[%clk 0:02:14]} 21. Na4 {[%clk 0:01:52]}  Qa5 {[%clk 0:02:05]} 22. Nc5 {[%clk 0:01:44]}  Nxe5 {[%clk 0:01:55]} 23. dxe5 {[%clk 0:01:35]}  Ne4 {[%clk 0:01:28]} 24. Nxe4 {[%clk 0:01:31]}  dxe4 {[%clk 0:01:29]} 25. Qxe4 {[%clk 0:01:32]}  g6 {[%clk 0:01:30]} 26. Qh4 {[%clk 0:01:28]}  Rd2 {[%clk 0:01:24]} 27. Qxh6 {[%clk 0:01:15]}  Rxe2 {[%clk 0:01:20]} 28. Rxe2 {[%clk 0:01:14]}  Qb5 {[%clk 0:01:08]} 29. Bxg6 {[%clk 0:00:37]}  fxg6 {[%clk 0:01:06]} 30. Qxg6+ {[%clk 0:00:36]}  Kf8 {[%clk 0:01:06]} 31. Qxe6 {[%clk 0:00:33]}  Rc1+ {[%clk 0:01:04]} 32. Kh2 {[%clk 0:00:33]}  Qxe2 {[%clk 0:01:03]} 33. Qh6+ {[%clk 0:00:32]}  Ke8 {[%clk 0:01:00]} 34. Qxc1 {[%clk 0:00:33]}  Qxf2 {[%clk 0:00:59]} 35. Qc3 {[%clk 0:00:31]}  Qf4+ {[%clk 0:00:59]} 36. Qg3 {[%clk 0:00:31]}  Qd2 {[%clk 0:00:58]} 37. b4 {[%clk 0:00:28]}  Qc1 {[%clk 0:00:55]} 38. Qg6+ {[%clk 0:00:19]}  Ke7 {[%clk 0:00:53]} 39. Qd6+ {[%clk 0:00:18]}  Ke8 {[%clk 0:00:54]} 40. e6 {[%clk 0:00:18]}  Qf1 {[%clk 0:00:50]} 41. Qd7+ {[%clk 0:00:18]}  Kf8 {[%clk 0:00:50]} 42. e7+ {[%clk 0:00:18]} 1-0


[Site "https://www.chess.com"]

[Event "Titled Tuesday Blitz January 18 2022"]
[White "Perez Ponsa, Federico"]
[Black "Girya, Olga"]
[WhiteFideId "117927"]
[BlackFideId "4195752"]
[WhiteElo "2672"]
[BlackElo "2275"]
[Result "1-0"]
[Round "04"]
[TimeControl "180+1"]
[Date "2022.01.18"]
[WhiteClock "0:00:19"]
[BlackClock "0:00:05"]

1. c4 {[%clk 0:02:57]}  e6 {[%clk 0:02:56]} 2. g3 {[%clk 0:02:57]}  d5 {[%clk 0:02:55]} 3. Nf3 {[%clk 0:02:57]}  Nf6 {[%clk 0:02:55]} 4. Bg2 {[%clk 0:02:58]}  Be7 {[%clk 0:02:55]} 5. O-O {[%clk 0:02:58]}  O-O {[%clk 0:02:55]} 6. b3 {[%clk 0:02:59]}  b6 {[%clk 0:02:52]} 7. Bb2 {[%clk 0:02:59]}  Bb7 {[%clk 0:02:51]} 8. e3 {[%clk 0:03:00]}  c5 {[%clk 0:02:50]} 9. Qe2 {[%clk 0:02:59]}  Nbd7 {[%clk 0:02:35]} 10. Nc3 {[%clk 0:02:56]}  dxc4 {[%clk 0:02:33]} 11. bxc4 {[%clk 0:02:56]}  Ne4 {[%clk 0:02:33]} 12. Nd1 {[%clk 0:02:37]}  Bf6 {[%clk 0:02:27]} 13. d3 {[%clk 0:02:25]}  Bxb2 {[%clk 0:02:21]} 14. Qxb2 {[%clk 0:02:26]}  Nd6 {[%clk 0:02:06]} 15. Nc3 {[%clk 0:02:25]}  Rb8 {[%clk 0:02:04]} 16. Ne1 {[%clk 0:02:24]}  Bxg2 {[%clk 0:02:02]} 17. Nxg2 {[%clk 0:02:25]}  Qe7 {[%clk 0:01:52]} 18. f4 {[%clk 0:02:23]}  Rfd8 {[%clk 0:01:51]} 19. g4 {[%clk 0:02:22]}  Rb7 {[%clk 0:01:34]} 20. a4 {[%clk 0:02:22]}  Nb8 {[%clk 0:01:33]} 21. Rad1 {[%clk 0:02:19]}  Nc6 {[%clk 0:01:33]} 22. Nb5 {[%clk 0:02:19]}  a6 {[%clk 0:01:30]} 23. Nxd6 {[%clk 0:02:18]}  Rxd6 {[%clk 0:01:29]} 24. f5 {[%clk 0:02:18]}  exf5 {[%clk 0:01:19]} 25. gxf5 {[%clk 0:02:16]}  Qe5 {[%clk 0:01:08]} 26. Qxe5 {[%clk 0:02:14]}  Nxe5 {[%clk 0:01:08]} 27. Nf4 {[%clk 0:02:15]}  Rbd7 {[%clk 0:01:03]} 28. Nd5 {[%clk 0:02:14]}  b5 {[%clk 0:01:03]} 29. axb5 {[%clk 0:02:08]}  axb5 {[%clk 0:01:03]} 30. e4 {[%clk 0:01:52]}  bxc4 {[%clk 0:01:02]} 31. dxc4 {[%clk 0:01:53]}  Nxc4 {[%clk 0:00:59]} 32. Rc1 {[%clk 0:01:53]}  Nd2 {[%clk 0:00:52]} 33. Rf4 {[%clk 0:01:51]}  h5 {[%clk 0:00:44]} 34. f6 {[%clk 0:01:36]}  Kf8 {[%clk 0:00:20]} 35. Re1 {[%clk 0:00:48]}  g5 {[%clk 0:00:13]} 36. Rf5 {[%clk 0:00:38]}  g4 {[%clk 0:00:12]} 37. Rxh5 {[%clk 0:00:36]}  Nf3+ {[%clk 0:00:12]} 38. Kf2 {[%clk 0:00:36]}  Rxf6 {[%clk 0:00:09]} 39. Nxf6 {[%clk 0:00:31]}  Rd6 {[%clk 0:00:07]} 40. e5 {[%clk 0:00:29]}  Nxe5 {[%clk 0:00:07]} 41. Rhxe5 {[%clk 0:00:19]}  Rxf6+ {[%clk 0:00:06]} 42. Kg3 {[%clk 0:00:19]}  Rf3+ {[%clk 0:00:05]} 43. Kxg4 {[%clk 0:00:19]}  Rf2 {[%clk 0:00:05]} 44. R5e2 {[%clk 0:00:18]}  Rf6 {[%clk 0:00:04]} 45. h4 {[%clk 0:00:19]}  Rg6+ {[%clk 0:00:04]} 46. Kh3 {[%clk 0:00:19]}  c4 {[%clk 0:00:04]} 47. h5 {[%clk 0:00:19]}  Rh6 {[%clk 0:00:04]} 48. Kh4 {[%clk 0:00:20]}  c3 {[%clk 0:00:05]} 49. Re8+ {[%clk 0:00:19]} 1-0


[Site "https://www.chess.com"]

[Event "Titled Tuesday Blitz January 18 2022"]
[White "Piesik, Piotr"]
[Black "Harshavardhan G B"]
[WhiteFideId "1136194"]
[BlackFideId "25059009"]
[WhiteElo "2232"]
[BlackElo "1831"]
[Result "1/2-1/2"]
[Round "04"]
[TimeControl "180+1"]
[Date "2022.01.18"]
[WhiteClock "0:00:18"]
[BlackClock "0:00:14"]

1. Nf3 {[%clk 0:03:00]}  Nf6 {[%clk 0:02:56]} 2. g3 {[%clk 0:03:01]}  g6 {[%clk 0:02:55]} 3. Bg2 {[%clk 0:03:01]}  Bg7 {[%clk 0:02:56]} 4. O-O {[%clk 0:03:02]}  O-O {[%clk 0:02:56]} 5. d4 {[%clk 0:03:02]}  d6 {[%clk 0:02:57]} 6. Nbd2 {[%clk 0:03:02]}  Nbd7 {[%clk 0:02:56]} 7. e4 {[%clk 0:03:02]}  e5 {[%clk 0:02:57]} 8. dxe5 {[%clk 0:03:03]}  dxe5 {[%clk 0:02:57]} 9. Qe2 {[%clk 0:03:03]}  Qe7 {[%clk 0:02:57]} 10. b3 {[%clk 0:03:02]}  b6 {[%clk 0:02:58]} 11. a4 {[%clk 0:03:02]}  a5 {[%clk 0:02:57]} 12. Rd1 {[%clk 0:03:02]}  Ba6 {[%clk 0:02:56]} 13. Qe1 {[%clk 0:03:03]}  Rfd8 {[%clk 0:02:55]} 14. Bb2 {[%clk 0:03:02]}  Ne8 {[%clk 0:02:53]} 15. Bf1 {[%clk 0:03:02]}  Bxf1 {[%clk 0:02:51]} 16. Kxf1 {[%clk 0:03:01]}  Nd6 {[%clk 0:02:52]} 17. Qe2 {[%clk 0:02:58]}  Nc5 {[%clk 0:02:50]} 18. Ne1 {[%clk 0:02:58]}  f5 {[%clk 0:02:30]} 19. exf5 {[%clk 0:02:48]}  gxf5 {[%clk 0:02:30]} 20. Nc4 {[%clk 0:02:47]}  e4 {[%clk 0:02:29]} 21. Bxg7 {[%clk 0:02:46]}  Kxg7 {[%clk 0:02:21]} 22. Ng2 {[%clk 0:02:45]}  Ne6 {[%clk 0:02:17]} 23. Nxd6 {[%clk 0:02:42]}  Rxd6 {[%clk 0:02:14]} 24. Rxd6 {[%clk 0:02:42]}  cxd6 {[%clk 0:02:15]} 25. Qe3 {[%clk 0:02:37]}  Qc7 {[%clk 0:02:10]} 26. Nf4 {[%clk 0:02:34]}  Nxf4 {[%clk 0:02:03]} 27. Qxf4 {[%clk 0:02:35]}  Kg6 {[%clk 0:02:03]} 28. Rd1 {[%clk 0:02:33]}  Rd8 {[%clk 0:02:02]} 29. Rd5 {[%clk 0:02:31]}  Qf7 {[%clk 0:01:33]} 30. Rxd6+ {[%clk 0:02:31]}  Rxd6 {[%clk 0:01:34]} 31. Qxd6+ {[%clk 0:02:31]}  Kh5 {[%clk 0:01:34]} 32. Qxb6 {[%clk 0:02:25]}  Qd5 {[%clk 0:01:30]} 33. Qe3 {[%clk 0:02:14]}  Kg6 {[%clk 0:01:29]} 34. Kg2 {[%clk 0:02:01]}  Qd1 {[%clk 0:01:26]} 35. c4 {[%clk 0:01:55]}  h6 {[%clk 0:01:24]} 36. h3 {[%clk 0:01:52]}  Qc2 {[%clk 0:01:16]} 37. g4 {[%clk 0:01:47]}  fxg4 {[%clk 0:01:14]} 38. hxg4 {[%clk 0:01:48]}  Kg7 {[%clk 0:01:14]} 39. Kg3 {[%clk 0:01:47]}  Qd1 {[%clk 0:01:14]} 40. Kf4 {[%clk 0:01:41]}  Qc2 {[%clk 0:01:04]} 41. c5 {[%clk 0:01:34]}  Kf7 {[%clk 0:00:58]} 42. Kg3 {[%clk 0:01:19]}  Kg7 {[%clk 0:00:56]} 43. Qd4+ {[%clk 0:01:15]}  Kg6 {[%clk 0:00:51]} 44. Qd6+ {[%clk 0:01:14]}  Kg5 {[%clk 0:00:46]} 45. Qd5+ {[%clk 0:01:13]}  Kg6 {[%clk 0:00:46]} 46. c6 {[%clk 0:01:13]}  Qc3+ {[%clk 0:00:41]} 47. Kh2 {[%clk 0:01:09]}  Qc2 {[%clk 0:00:41]} 48. Kg2 {[%clk 0:01:00]}  Kg7 {[%clk 0:00:29]} 49. Qe5+ {[%clk 0:00:57]}  Kf7 {[%clk 0:00:26]} 50. c7 {[%clk 0:00:57]}  e3 {[%clk 0:00:24]} 51. Qxe3 {[%clk 0:00:44]}  Qxc7 {[%clk 0:00:24]} 52. Qxh6 {[%clk 0:00:42]}  Qb7+ {[%clk 0:00:21]} 53. Kh2 {[%clk 0:00:38]}  Qxb3 {[%clk 0:00:21]} 54. Qf4+ {[%clk 0:00:37]}  Kg7 {[%clk 0:00:19]} 55. g5 {[%clk 0:00:36]}  Qb4 {[%clk 0:00:17]} 56. Qf6+ {[%clk 0:00:36]}  Kg8 {[%clk 0:00:17]} 57. g6 {[%clk 0:00:36]}  Qb8+ {[%clk 0:00:16]} 58. Kh3 {[%clk 0:00:34]}  Qh2+ {[%clk 0:00:15]} 59. Kg4 {[%clk 0:00:26]}  Qg2+ {[%clk 0:00:15]} 60. Kh5 {[%clk 0:00:20]}  Qg4+ {[%clk 0:00:14]} 61. Kh6 {[%clk 0:00:18]}  Qh5+ {[%clk 0:00:14]} 62. Kxh5 {[%clk 0:00:18]} 1/2-1/2


[Site "https://www.chess.com"]

[Event "Titled Tuesday Blitz January 18 2022"]
[White "Pranav, V"]
[Black "Iskusnyh, Sergei"]
[WhiteFideId "25060783"]
[BlackFideId "4120027"]
[WhiteElo "2349"]
[BlackElo "2492"]
[Result "0-1"]
[Round "04"]
[TimeControl "180+1"]
[Date "2022.01.18"]
[WhiteClock "0:00:03"]
[BlackClock "0:00:17"]

1. e4 {[%clk 0:03:00]}  e6 {[%clk 0:02:59]} 2. d4 {[%clk 0:03:00]}  d5 {[%clk 0:03:00]} 3. Nc3 {[%clk 0:03:01]}  Nf6 {[%clk 0:03:00]} 4. e5 {[%clk 0:03:02]}  Nfd7 {[%clk 0:03:00]} 5. f4 {[%clk 0:03:03]}  c5 {[%clk 0:03:00]} 6. Nf3 {[%clk 0:03:03]}  Be7 {[%clk 0:02:58]} 7. Be3 {[%clk 0:03:03]}  O-O {[%clk 0:02:57]} 8. Qd2 {[%clk 0:03:03]}  a6 {[%clk 0:02:57]} 9. O-O-O {[%clk 0:02:57]}  b5 {[%clk 0:02:45]} 10. dxc5 {[%clk 0:02:57]}  Nxc5 {[%clk 0:02:43]} 11. Kb1 {[%clk 0:02:45]}  Nbd7 {[%clk 0:02:25]} 12. h4 {[%clk 0:02:41]}  Qc7 {[%clk 0:02:19]} 13. Bd3 {[%clk 0:02:38]}  b4 {[%clk 0:02:04]} 14. Ne2 {[%clk 0:02:38]}  Ne4 {[%clk 0:01:57]} 15. Bxe4 {[%clk 0:02:33]}  dxe4 {[%clk 0:01:57]} 16. Ng5 {[%clk 0:02:33]}  Nb6 {[%clk 0:01:47]} 17. Qd4 {[%clk 0:02:25]}  Nd5 {[%clk 0:01:23]} 18. Qxe4 {[%clk 0:02:25]}  g6 {[%clk 0:01:21]} 19. h5 {[%clk 0:02:05]}  Bb7 {[%clk 0:01:20]} 20. hxg6 {[%clk 0:02:01]}  Nc3+ {[%clk 0:01:12]} 21. Nxc3 {[%clk 0:02:00]}  Bxe4 {[%clk 0:01:12]} 22. gxf7+ {[%clk 0:01:57]}  Rxf7 {[%clk 0:01:07]} 23. Ncxe4 {[%clk 0:01:56]}  Bxg5 {[%clk 0:01:03]} 24. Nxg5 {[%clk 0:01:56]}  Re7 {[%clk 0:01:01]} 25. Ne4 {[%clk 0:01:50]}  Rc8 {[%clk 0:00:56]} 26. Nf6+ {[%clk 0:01:46]}  Kh8 {[%clk 0:00:53]} 27. Rd2 {[%clk 0:01:44]}  a5 {[%clk 0:00:50]} 28. g4 {[%clk 0:01:38]}  Qb7 {[%clk 0:00:22]} 29. Rdh2 {[%clk 0:01:32]}  Rcc7 {[%clk 0:00:22]} 30. g5 {[%clk 0:01:25]}  Rg7 {[%clk 0:00:21]} 31. Ne8 {[%clk 0:01:08]}  a4 {[%clk 0:00:19]} 32. Nxc7 {[%clk 0:00:56]}  Qxc7 {[%clk 0:00:19]} 33. Rh6 {[%clk 0:00:54]}  b3 {[%clk 0:00:18]} 34. cxb3 {[%clk 0:00:34]}  axb3 {[%clk 0:00:18]} 35. a3 {[%clk 0:00:21]}  Qc2+ {[%clk 0:00:17]} 36. Ka1 {[%clk 0:00:21]}  Rd7 {[%clk 0:00:16]} 37. Rc1 {[%clk 0:00:16]}  Rd1 {[%clk 0:00:16]} 38. Rh1 {[%clk 0:00:16]}  Rxh1 {[%clk 0:00:15]} 39. Rxh1 {[%clk 0:00:17]}  Qe4 {[%clk 0:00:16]} 40. Re1 {[%clk 0:00:16]}  Kg7 {[%clk 0:00:17]} 41. Bd2 {[%clk 0:00:14]}  Qd3 {[%clk 0:00:17]} 42. Bc3 {[%clk 0:00:09]}  Kg6 {[%clk 0:00:17]} 43. a4 {[%clk 0:00:04]}  Qc4 {[%clk 0:00:17]} 44. a5 {[%clk 0:00:04]}  Qxf4 {[%clk 0:00:17]} 45. Kb1 {[%clk 0:00:04]}  Qf5+ {[%clk 0:00:17]} 46. Ka1 {[%clk 0:00:03]}  Qf4 {[%clk 0:00:17]} 47. Kb1 {[%clk 0:00:02]}  Qxg5 {[%clk 0:00:17]} 48. a6 {[%clk 0:00:01]}  Qf5+ {[%clk 0:00:18]} 49. Ka1 {[%clk 0:00:01]}  Qd3 {[%clk 0:00:18]} 50. Rg1+ {[%clk 0:00:01]}  Kf5 {[%clk 0:00:18]} 51. a7 {[%clk 0:00:02]}  Qa6+ {[%clk 0:00:17]} 52. Kb1 {[%clk 0:00:03]}  Qxa7 {[%clk 0:00:18]} 53. Rh1 {[%clk 0:00:03]}  Qa6 {[%clk 0:00:18]} 54. Kc1 {[%clk 0:00:03]}  Qd3 {[%clk 0:00:17]} 55. Rh2 {[%clk 0:00:02]}  Qf1+ {[%clk 0:00:16]} 56. Kd2 {[%clk 0:00:03]}  Qf4+ {[%clk 0:00:17]} 0-1


[Site "https://www.chess.com"]

[Event "Titled Tuesday Blitz January 18 2022"]
[White "Prraneeth Vuppala"]
[Black "Sychev, Klementy"]
[WhiteFideId "46622373"]
[BlackFideId "4114060"]
[WhiteElo "1759"]
[BlackElo "2564"]
[Result "0-1"]
[Round "04"]
[TimeControl "180+1"]
[Date "2022.01.18"]
[WhiteClock "0:00:19"]
[BlackClock "0:01:24"]

1. e4 {[%clk 0:03:00]}  g6 {[%clk 0:02:59]} 2. d4 {[%clk 0:03:00]}  Bg7 {[%clk 0:02:59]} 3. Nc3 {[%clk 0:03:00]}  c6 {[%clk 0:02:59]} 4. Be3 {[%clk 0:02:50]}  d5 {[%clk 0:02:58]} 5. e5 {[%clk 0:02:50]}  Nh6 {[%clk 0:02:56]} 6. Qd2 {[%clk 0:02:42]}  Nf5 {[%clk 0:02:52]} 7. Bf4 {[%clk 0:02:42]}  f6 {[%clk 0:02:39]} 8. Nf3 {[%clk 0:02:34]}  g5 {[%clk 0:02:37]} 9. exf6 {[%clk 0:02:06]}  exf6 {[%clk 0:02:36]} 10. Bxb8 {[%clk 0:02:04]}  Rxb8 {[%clk 0:02:35]} 11. h3 {[%clk 0:01:54]}  O-O {[%clk 0:02:32]} 12. O-O-O {[%clk 0:01:50]}  b5 {[%clk 0:02:32]} 13. Bd3 {[%clk 0:01:46]}  Nd6 {[%clk 0:02:29]} 14. g4 {[%clk 0:01:35]}  Qa5 {[%clk 0:02:24]} 15. Kb1 {[%clk 0:01:30]}  Nc4 {[%clk 0:02:23]} 16. Bxc4 {[%clk 0:01:23]}  bxc4 {[%clk 0:02:24]} 17. Ne2 {[%clk 0:01:23]}  Qa3 {[%clk 0:02:06]} 18. c3 {[%clk 0:01:20]}  Rf7 {[%clk 0:02:03]} 19. Ka1 {[%clk 0:01:17]}  Qa5 {[%clk 0:01:58]} 20. Rb1 {[%clk 0:01:06]}  Rfb7 {[%clk 0:01:56]} 21. Nc1 {[%clk 0:01:01]}  Be6 {[%clk 0:01:54]} 22. Qc2 {[%clk 0:00:56]}  Bf7 {[%clk 0:01:53]} 23. b4 {[%clk 0:00:55]}  Qc7 {[%clk 0:01:50]} 24. Rb2 {[%clk 0:00:51]}  Bg6 {[%clk 0:01:49]} 25. Qd1 {[%clk 0:00:51]}  a5 {[%clk 0:01:49]} 26. a3 {[%clk 0:00:50]}  axb4 {[%clk 0:01:45]} 27. axb4 {[%clk 0:00:48]}  Ra7+ {[%clk 0:01:42]} 28. Na2 {[%clk 0:00:48]}  Rba8 {[%clk 0:01:41]} 29. Re1 {[%clk 0:00:46]}  h6 {[%clk 0:01:40]} 30. Nd2 {[%clk 0:00:36]}  Bf8 {[%clk 0:01:39]} 31. Re2 {[%clk 0:00:33]}  Bxb4 {[%clk 0:01:37]} 32. cxb4 {[%clk 0:00:20]}  c3 {[%clk 0:01:36]} 33. Nb3 {[%clk 0:00:20]}  cxb2+ {[%clk 0:01:34]} 34. Rxb2 {[%clk 0:00:21]}  Ra3 {[%clk 0:01:31]} 35. Nc5 {[%clk 0:00:21]}  Qa7 {[%clk 0:01:28]} 36. Qe2 {[%clk 0:00:20]}  Re8 {[%clk 0:01:26]} 37. Qd2 {[%clk 0:00:19]}  Rxh3 {[%clk 0:01:25]} 38. b5 {[%clk 0:00:19]}  Rh1+ {[%clk 0:01:24]} 0-1


[Site "https://www.chess.com"]